fUSD/lending_fUSD_20250415
["ID","MTS","AMOUNT","RATE_DAILY","PERIOD"]
[358066859,1744683049003,-500.0,0.00017897,2]
[358066860,1744683049012,-192.82797984,0.00017897,2]
[358066861,1744683049022,-500.0,0.00017897,2]
[358066862,1744683049033,-173.64,0.00017897,2]
[358066863,1744683049043,-500.0,0.00017897,2]
[358066864,1744683049053,-300.1,0.00017897,2]
[358066865,1744683049062,-500.0,0.00017897,2]
[358066866,1744683049072,-500.0,0.00017897,2]
[358066867,1744683049081,-500.0,0.00017897,2]
[358066868,1744683049091,-574.69,0.00017897,2]
[358066869,1744683049101,-607.71,0.00017897,2]
[358066870,1744683049110,-607.71,0.00017897,2]
[358066871,1744683049119,-607.71,0.00017897,2]
[358066872,1744683049128,-500.0,0.00017897,2]
[358066873,1744683049137,-607.71,0.00017897,2]
[358066874,1744683049147,-500.0,0.00017897,2]
[358066875,1744683049156,-607.71,0.00017897,2]
[358066876,1744683049166,-500.0,0.00017897,2]
[358066877,1744683049175,-607.71,0.00017897,2]
[358066878,1744683049184,-500.0,0.00017897,2]
[358066879,1744683049194,-607.71,0.00017897,2]
[358066880,1744683049204,-500.0,0.00017897,2]
[358066881,1744683049213,-607.71,0.00017897,2]
[358066882,1744683049223,-399.54,0.00017897,2]
[358066883,1744683049232,-607.71,0.00017897,2]
[358066884,1744683049241,-607.71,0.00017897,2]
[358066885,1744683049251,-607.71,0.00017897,2]
[358066886,1744683049261,-607.71,0.00017897,2]
[358066887,1744683049271,-607.71,0.00017897,2]
[358066888,1744683049280,-607.71,0.00017897,2]
[358066889,1744683049291,-607.71,0.00017897,2]
[358066890,1744683049300,-607.71,0.00017897,2]
[358066891,1744683049309,-607.71,0.00017897,2]
[358066892,1744683049318,-607.71,0.00017897,2]
[358066893,1744683049328,-607.71,0.00017897,2]
[358066894,1744683049337,-607.71,0.00017897,2]
[358066895,1744683049348,-607.85,0.00017897,2]
[358066896,1744683049358,-1003.36,0.00017897,2]
[358066897,1744683049368,-1003.36,0.00017897,2]
[358066898,1744683049377,-1003.36,0.00017897,2]
[358066899,1744683049386,-1003.36,0.00017897,2]
[358066900,1744683049394,-1003.36,0.00017897,2]
[358066901,1744683049405,-1003.36,0.00017897,2]
[358066902,1744683049415,-1003.36,0.00017897,2]
[358066903,1744683049425,-1003.36,0.00017897,2]
[358066904,1744683049436,-1003.36,0.00017897,2]
[358066905,1744683049446,-1003.36,0.00017897,2]
[358066906,1744683049455,-1003.36,0.00017897,2]
[358066907,1744683049465,-1003.36,0.00017897,2]
[358066908,1744683049474,-1003.36,0.00017897,2]
[358066909,1744683049484,-1003.36,0.00017897,2]
[358066910,1744683049493,-1003.36,0.00017897,2]
[358066911,1744683049502,-1003.36,0.00017897,2]
[358066912,1744683049511,-1003.36,0.00017897,2]
[358066913,1744683049521,-500.0,0.00017897,2]
[358066914,1744683049530,-1003.36,0.00017897,2]
[358066915,1744683049540,-500.0,0.00017897,2]
[358066916,1744683049550,-1003.36,0.00017897,2]
[358066917,1744683049559,-500.0,0.00017897,2]
[358066918,1744683049569,-1003.36,0.00017897,2]
[358066919,1744683049578,-500.0,0.00017897,2]
[358066920,1744683049589,-1003.44,0.00017897,2]
[358066921,1744683049599,-500.0,0.00017897,2]
[358066922,1744683049609,-500.0,0.00017897,2]
[358066923,1744683049619,-500.0,0.00017897,2]
[358066924,1744683049629,-500.0,0.00017897,2]
[358066925,1744683049639,-500.0,0.00017897,2]
[358066926,1744683049648,-500.0,0.00017897,2]
[358066927,1744683049658,-500.0,0.00017897,2]
[358066928,1744683049667,-500.0,0.00017897,2]
[358066929,1744683049677,-500.0,0.00017897,2]
[358066930,1744683049686,-500.0,0.00017897,2]
[358066931,1744683049695,-500.0,0.00017897,2]
[358066932,1744683049705,-500.0,0.00017897,2]
[358066933,1744683049715,-500.0,0.00017897,2]
[358066934,1744683049726,-500.0,0.00017897,2]
[358066935,1744683049735,-235.65000128,0.00017897,2]
[358066936,1744683049745,-500.0,0.00017897,2]
[358066937,1744683049754,-389.31,0.00017897,2]
[358066938,1744683049764,-500.0,0.00017897,2]
[358066939,1744683049932,-500.0,0.00017897,2]
[358066940,1744683049943,-500.0,0.00017897,2]
[358066941,1744683049952,-500.0,0.00017897,2]
[358066942,1744683049961,-159.60101065,0.00017897,2]
[358066943,1744683049971,-598.49,0.00017897,2]
[358066944,1744683049979,-492.91231677,0.00017897,2]
[358066945,1744683049989,-545.08813159,0.00017897,2]
[358066946,1744683049998,-500.0,0.00017897,2]
[358066947,1744683050007,-318.08,0.00017897,2]
[358066948,1744683050023,-500.0,0.00017897,2]
[358066949,1744683050032,-500.0,0.00017897,2]
[358066950,1744683050042,-1551.0,0.00017898,2]
[358066951,1744683050051,-408658.57404026,0.00017898,2]
[358066952,1744683050060,-657.17948292,0.00017898,2]
[358066953,1744683050069,-38231.02648179,0.00017898,2]
[358066954,1744683050092,-802.13918765,0.00017898,2]
[358066955,1744683050105,-390.39989793,0.00017898,2]
[358066956,1744683050129,-50732.7791015,0.00017898,2]
[358066957,1744683050147,-224.535,0.00017791,2]
[358066958,1744683050156,-47414.97820559,0.00017898,2]
[358066959,1744683051590,-312.71040877,0.00017894,2]
[358066960,1744683051603,-187.28959123,0.00017894,2]
[358066961,1744683051612,-645.1389558,0.00017898,2]
[358066962,1744683051623,-7800.0,0.00017898,2]
[358066963,1744683051634,-6893.94016507,0.00017898,2]
[358066964,1744683051646,-3840.45983549,0.00017898,2]
[358066965,1744683051657,-549.05,0.00017898,2]
[358066966,1744683051668,-30518.11414752,0.00017898,2]
[358066967,1744683051763,-259.20999954,0.00017894,2]
[358066968,1744683051775,-304.3691681,0.00017894,2]
[358066969,1744683051784,-500.0,0.00017894,2]
[358066970,1744683051793,-155.34879645,0.00017898,2]
[358066971,1744683089099,1000.0,0.00017074,2]
[358066972,1744683122028,171.42,0.00016996,2]
[358066973,1744683122460,-271.99790724,0.00017688,2]
[358066974,1744683122970,-250.0,0.00017688,2]
[358066975,1744683138454,454.14,0.00016952,2]
[358066976,1744683319776,200.0,0.00016924,7]
[358066977,1744683391776,-40.12801176,0.00017688,2]
[358066978,1744683391798,-400.70298824,0.00017694,2]
[358066979,1744683394886,2000.0,0.00016913,2]
[358066980,1744683428039,-100.36699189,0.00017694,2]
[358066981,1744683428061,-88.52888676,0.00017732,2]
[358066982,1744683442869,-1100.0,0.00019876,3]
[358066983,1744683442894,-743.12749166,0.000199,3]
[358066984,1744683442923,-12201.03613696,0.0002,4]
[358066985,1744683442948,-2000.0,0.0002,4]
[358066986,1744683469989,-161.47111324,0.00017732,2]
[358066987,1744683470025,-88.52888676,0.00017765,2]
[358066988,1744683515043,-250.0,0.00017764,2]
[358066989,1744683518814,5560.0,0.000182,5]
[358066990,1744683519076,5560.0,0.00018,3]
[358066991,1744683551219,5560.0,0.000181,5]
[358066992,1744683551622,1360.0,0.000179,3]
[358066993,1744683599632,250.0,0.00016848,2]
[358066994,1744683701035,9319.81,0.00016852,2]
[358066995,1744683766890,671.06,0.00016852,2]
[358066996,1744683767089,671.06,0.00016856,2]
[358066997,1744683767514,671.06,0.00016861,2]
[358066998,1744683767560,671.06,0.00016865,2]
[358066999,1744683767753,671.06,0.0001687,2]
[358067000,1744683767981,671.06,0.00016874,2]
[358067001,1744683768404,671.06,0.00016878,2]
[358067002,1744683768624,671.06,0.00016883,2]
[358067003,1744683768837,671.06,0.00016887,2]
[358067004,1744683769071,671.06,0.00016892,2]
[358067005,1744683769314,671.06,0.00016896,2]
[358067006,1744683769527,671.06,0.00016901,2]
[358067007,1744683770870,671.06,0.00016905,2]
[358067008,1744683771391,671.06,0.0001691,2]
[358067009,1744683771430,671.06,0.00016914,2]
[358067010,1744683771800,671.06,0.00016918,2]
[358067011,1744683772055,671.06,0.00016923,2]
[358067012,1744683772264,671.06,0.00016927,2]
[358067013,1744683772493,671.06,0.00016932,2]
[358067014,1744683772701,671.06,0.00016936,2]
[358067015,1744683776048,171.05,0.00017357,2]
[358067016,1744683779185,229.52,0.00018,3]
[358067017,1744683844216,788.01,0.00016853,2]
[358067018,1744683855221,602.41,0.00014936,2]
[358067019,1744683855453,602.41,0.000172,2]
[358067020,1744683939694,150.0,0.00016854,2]
[358067024,1744684008719,187.21462328,0.0002,30]
[358067025,1744684045085,1852.42,0.00016831,2]
[358067027,1744684130439,1000.0,0.00016832,2]
[358067031,1744684203434,2000.0,0.0002,4]
[358067038,1744684232171,-315.8545,0.00017756,2]
[358067040,1744684232181,-482.168729,0.00017764,2]
[358067042,1744684232191,-884.15518362,0.00017764,2]
[358067043,1744684232276,-570.52286505,0.00017764,2]
[358067044,1744684232287,-436.72717665,0.00017766,2]
[358067045,1744684232298,-741.2601,0.00017794,2]
[358067046,1744684232308,-300.0,0.00017794,2]
[358067047,1744684232317,-201.4898583,0.00017794,2]
[358067048,1744684232330,-98.5101417,0.00017794,2]
[358067049,1744684232339,-868.85682502,0.00017795,2]
[358067050,1744684232350,-1050.0,0.00017795,2]
[358067051,1744684232363,-1532.11277498,0.00017795,2]
[358067052,1744684232374,-2067.5955,0.00017795,2]
[358067053,1744684232385,-2533.8123,0.00017795,2]
[358067054,1744684232395,-770.0432504,0.00017796,2]
[358067055,1744684232405,-550.0,0.00017796,2]
[358067056,1744684232415,-46.43617462,0.00017796,2]
[358067057,1744684232440,-723.60707573,0.00017796,2]
[358067058,1744684232450,-770.04325035,0.00017796,2]
[358067059,1744684232459,-770.04325035,0.00017797,2]
[358067067,1744684232695,-770.04325035,0.00017797,2]
[358067068,1744684232706,-1351.68881954,0.00017797,2]
[358067069,1744684232718,-3706.03168046,0.00017797,2]
[358067070,1744684232727,-11063.7066,0.00017797,2]
[358067071,1744684232737,-770.04325035,0.00017797,2]
[358067072,1744684232746,-502.18566027,0.00017797,2]
[358067073,1744684232768,-267.85759008,0.00017797,2]
[358067074,1744684232778,-770.04325035,0.00017798,2]
[358067075,1744684232788,-770.04325035,0.00017798,2]
[358067076,1744684232797,-157.38359979,0.00017798,2]
[358067077,1744684232807,-770.04325035,0.00017798,2]
[358067078,1744684232816,-243.10526764,0.00017798,2]
[358067079,1744684232825,-182.24299052,0.00017798,2]
[358067080,1744684232834,-207.2454,0.00017798,2]
[358067081,1744684232843,-14343.63540092,0.00017856,2]
[358067083,1744684238269,-233.59686271,0.00017666,2]
[358067084,1744684238279,-2951.72159103,0.00017856,2]
[358067085,1744684238291,-3110.01716113,0.00017856,2]
[358067086,1744684238305,-2048.003565,0.00017856,2]
[358067087,1744684238317,-4059.62035122,0.00017856,2]
[358067088,1744684238328,-1795.08269747,0.00017856,2]
[358067089,1744684238341,-15354.64553326,0.00017856,2]
[358067090,1744684238354,-628.0812623,0.00017856,2]
[358067091,1744684238366,-783.33,0.00017856,2]
[358067092,1744684238378,-33586.23749551,0.00017856,2]
[358067093,1744684238395,-1466.05192108,0.00017856,2]
[358067094,1744684238406,-1052.48092044,0.00017856,2]
[358067095,1744684238434,-4688.42003455,0.00017856,2]
[358067096,1744684238491,-363.50002513,0.00017856,2]
[358067097,1744684238502,-3229.23732841,0.00017856,2]
[358067098,1744684238513,-27.67022881,0.00017856,2]
[358067099,1744684238526,-500.0,0.00017873,2]
[358067100,1744684238534,-285.15255984,0.00017873,2]
[358067101,1744684238542,-162.380719,0.00017873,2]
[358067102,1744684238551,-325.97716013,0.00017884,2]
[358067103,1744684238561,-1748.61131418,0.00017884,2]
[358067104,1744684238570,-632.038,0.00017884,2]
[358067105,1744684238579,-639.21,0.00017886,2]
[358067106,1744684238589,-500.0,0.00017894,2]
[358067107,1744684238598,-500.0,0.00017894,2]
[358067108,1744684238607,-500.0,0.00017894,2]
[358067109,1744684238615,-500.0,0.00017894,2]
[358067110,1744684238625,-500.0,0.00017894,2]
[358067111,1744684238636,-500.0,0.00017894,2]
[358067112,1744684238645,-1492.68013915,0.00017894,2]
[358067114,1744684238668,-1069.31986085,0.00017894,2]
[358067115,1744684238677,-500.0,0.00017894,2]
[358067116,1744684238687,-500.0,0.00017894,2]
[358067117,1744684238696,-500.0,0.00017894,2]
[358067118,1744684238706,-500.0,0.00017894,2]
[358067119,1744684238716,-253.82617444,0.00017894,2]
[358067121,1744684238726,-500.0,0.00017894,2]
[358067122,1744684238735,-150.0,0.00017894,2]
[358067123,1744684238745,-166.42904129,0.00017894,2]
[358067124,1744684238754,-500.0,0.00017894,2]
[358067125,1744684238764,-150.0,0.00017894,2]
[358067127,1744684238774,-221.18246638,0.00017894,2]
[358067128,1744684238784,-150.0,0.00017894,2]
[358067130,1744684238793,-500.0,0.00017894,2]
[358067131,1744684238803,-500.0,0.00017894,2]
[358067132,1744684238813,-500.0,0.00017895,2]
[358067133,1744684238822,-500.0,0.00017895,2]
[358067135,1744684238831,-500.0,0.00017895,2]
[358067136,1744684238841,-500.0,0.00017895,2]
[358067138,1744684238850,-500.0,0.00017895,2]
[358067139,1744684238859,-500.0,0.00017895,2]
[358067140,1744684238872,-500.0,0.00017895,2]
[358067141,1744684238883,-500.0,0.00017895,2]
[358067142,1744684238893,-500.0,0.00017895,2]
[358067143,1744684238903,-500.0,0.00017895,2]
[358067144,1744684238914,-500.0,0.00017895,2]
[358067145,1744684238925,-500.0,0.00017895,2]
[358067146,1744684238935,-500.0,0.00017895,2]
[358067147,1744684238945,-500.0,0.00017895,2]
[358067148,1744684238956,-500.0,0.00017895,2]
[358067149,1744684238965,-500.0,0.00017895,2]
[358067150,1744684238974,-500.0,0.00017895,2]
[358067151,1744684238984,-500.0,0.00017895,2]
[358067152,1744684238993,-500.0,0.00017895,2]
[358067153,1744684239003,-500.0,0.00017895,2]
[358067154,1744684239012,-500.0,0.00017895,2]
[358067155,1744684239021,-500.0,0.00017895,2]
[358067156,1744684239031,-500.0,0.00017895,2]
[358067157,1744684239040,-182.60876166,0.00017895,2]
[358067158,1744684239050,-502.89901115,0.00017895,2]
[358067159,1744684239065,-500.0,0.00017895,2]
[358067160,1744684239076,-500.0,0.00017895,2]
[358067161,1744684239089,-500.0,0.00017895,2]
[358067162,1744684239103,-503.83442561,0.00017895,2]
[358067163,1744684239115,-533.71928782,0.00017895,2]
[358067164,1744684239127,-500.0,0.00017895,2]
[358067165,1744684239139,-500.0,0.00017895,2]
[358067166,1744684239150,-529.43491296,0.00017895,2]
[358067167,1744684239161,-500.0,0.00017895,2]
[358067168,1744684239174,-511.65101202,0.00017895,2]
[358067169,1744684239185,-532.05683382,0.00017895,2]
[358067170,1744684239197,-500.0,0.00017896,2]
[358067171,1744684239208,-500.0,0.00017896,2]
[358067172,1744684239219,-595.8187806,0.00017896,2]
[358067173,1744684239231,-500.0,0.00017896,2]
[358067174,1744684239244,-500.0,0.00017896,2]
[358067175,1744684239256,-177.5102939,0.00017896,2]
[358067176,1744684239273,-322.4897061,0.00017896,2]
[358067177,1744684239284,-500.0,0.00017896,2]
[358067178,1744684239299,-500.0,0.00017896,2]
[358067179,1744684239310,-500.0,0.00017896,2]
[358067180,1744684239321,-636.55889493,0.00017896,2]
[358067181,1744684239331,-500.0,0.00017896,2]
[358067182,1744684239343,-500.0,0.00017896,2]
[358067183,1744684239355,-500.0,0.00017896,2]
[358067184,1744684239368,-500.0,0.00017896,2]
[358067185,1744684239380,-500.0,0.00017896,2]
[358067186,1744684239392,-500.0,0.00017896,2]
[358067187,1744684239403,-500.0,0.00017896,2]
[358067188,1744684239414,-500.0,0.00017896,2]
[358067189,1744684239428,-500.0,0.00017896,2]
[358067190,1744684239441,-85.95139882,0.00017896,2]
[358067191,1744684239456,-414.04860118,0.00017896,2]
[358067192,1744684239468,-500.0,0.00017896,2]
[358067193,1744684239481,-500.0,0.00017896,2]
[358067194,1744684239493,-500.0,0.00017896,2]
[358067195,1744684239504,-535.43564273,0.00017896,2]
[358067196,1744684239516,-500.0,0.00017896,2]
[358067197,1744684239529,-500.0,0.00017896,2]
[358067198,1744684239540,-500.0,0.00017896,2]
[358067199,1744684239552,-500.0,0.00017896,2]
[358067200,1744684239565,-500.0,0.00017896,2]
[358067201,1744684239576,-500.0,0.00017896,2]
[358067202,1744684239589,-500.0,0.00017896,2]
[358067203,1744684239601,-500.0,0.00017896,2]
[358067204,1744684239613,-500.0,0.00017896,2]
[358067205,1744684239626,-500.0,0.00017896,2]
[358067206,1744684239639,-500.0,0.00017896,2]
[358067207,1744684239650,-500.0,0.00017896,2]
[358067208,1744684239666,-500.0,0.00017896,2]
[358067209,1744684239679,-152.66080241,0.00017896,2]
[358067212,1744684240315,-347.33919759,0.00017896,2]
[358067213,1744684240329,-30.39934077,0.00017896,2]
[358067214,1744684240475,-469.60065923,0.00017896,2]
[358067215,1744684240486,-500.0,0.00017896,2]
[358067216,1744684240496,-500.0,0.00017896,2]
[358067217,1744684240506,-500.0,0.00017896,2]
[358067218,1744684240517,-500.0,0.00017896,2]
[358067219,1744684240528,-500.0,0.00017896,2]
[358067220,1744684240539,-500.0,0.00017896,2]
[358067221,1744684240552,-500.0,0.00017896,2]
[358067222,1744684240565,-500.0,0.00017896,2]
[358067223,1744684240577,-492.24411677,0.00017896,2]
[358067224,1744684240588,-500.0,0.00017896,2]
[358067225,1744684240598,-500.0,0.00017896,2]
[358067226,1744684240609,-500.0,0.00017896,2]
[358067227,1744684240619,-500.0,0.00017896,2]
[358067228,1744684240630,-500.0,0.00017896,2]
[358067229,1744684240646,-500.0,0.00017896,2]
[358067230,1744684240662,-500.0,0.00017896,2]
[358067231,1744684240676,-500.0,0.00017896,2]
[358067232,1744684240688,-500.0,0.00017896,2]
[358067233,1744684240701,-500.0,0.00017896,2]
[358067234,1744684240713,-500.0,0.00017896,2]
[358067235,1744684240724,-500.0,0.00017896,2]
[358067236,1744684240736,-516.56,0.00017896,2]
[358067237,1744684240749,-500.0,0.00017896,2]
[358067238,1744684240761,-500.0,0.00017896,2]
[358067239,1744684240774,-500.0,0.00017896,2]
[358067240,1744684240786,-500.0,0.00017896,2]
[358067241,1744684240798,-500.0,0.00017896,2]
[358067242,1744684240809,-500.0,0.00017896,2]
[358067243,1744684240820,-500.0,0.00017896,2]
[358067244,1744684240830,-500.0,0.00017896,2]
[358067245,1744684240842,-545.07701756,0.00017896,2]
[358067246,1744684240853,-500.0,0.00017896,2]
[358067247,1744684240863,-500.0,0.00017896,2]
[358067248,1744684240875,-500.0,0.00017896,2]
[358067249,1744684240887,-500.0,0.00017896,2]
[358067250,1744684240898,-500.0,0.00017896,2]
[358067251,1744684240909,-500.0,0.00017896,2]
[358067252,1744684240920,-500.0,0.00017896,2]
[358067253,1744684240931,-500.0,0.00017896,2]
[358067254,1744684240943,-533.62,0.00017896,2]
[358067255,1744684240954,-500.0,0.00017896,2]
[358067256,1744684240965,-500.0,0.00017896,2]
[358067257,1744684240977,-500.0,0.00017896,2]
[358067258,1744684240989,-513.79489795,0.00017896,2]
[358067259,1744684241001,-500.0,0.00017896,2]
[358067260,1744684241012,-500.0,0.00017896,2]
[358067261,1744684241023,-500.0,0.00017896,2]
[358067262,1744684241034,-2021.8184261,0.00017896,2]
[358067263,1744684241045,-500.0,0.00017896,2]
[358067264,1744684241056,-500.0,0.00017896,2]
[358067265,1744684241068,-500.0,0.00017896,2]
[358067266,1744684241079,-558.98536469,0.00017896,2]
[358067267,1744684241090,-500.0,0.00017896,2]
[358067268,1744684241102,-500.0,0.00017896,2]
[358067269,1744684241114,-500.0,0.00017896,2]
[358067270,1744684241124,-500.0,0.00017896,2]
[358067271,1744684241135,-500.0,0.00017896,2]
[358067272,1744684241146,-500.0,0.00017896,2]
[358067273,1744684241158,-500.0,0.00017896,2]
[358067274,1744684241169,-500.0,0.00017896,2]
[358067275,1744684241180,-131.97947945,0.00017896,2]
[358067276,1744684241195,-368.02052055,0.00017896,2]
[358067277,1744684241207,-558.1855723,0.00017896,2]
[358067278,1744684241218,-500.0,0.00017896,2]
[358067279,1744684241230,-500.0,0.00017896,2]
[358067280,1744684241242,-500.0,0.00017896,2]
[358067281,1744684241253,-500.0,0.00017896,2]
[358067282,1744684241264,-509.77832867,0.00017896,2]
[358067283,1744684241275,-500.0,0.00017896,2]
[358067284,1744684241286,-511.96145209,0.00017896,2]
[358067285,1744684241301,-536.09899326,0.00017896,2]
[358067286,1744684241313,-500.0,0.00017896,2]
[358067287,1744684241326,-500.0,0.00017896,2]
[358067288,1744684241339,-500.0,0.00017896,2]
[358067289,1744684241350,-2523.98,0.00017896,2]
[358067290,1744684241360,-518.33279678,0.00017896,2]
[358067291,1744684241371,-463.34792041,0.00017896,2]
[358067292,1744684241384,-549.81,0.00017896,2]
[358067293,1744684241394,-500.0,0.00017896,2]
[358067294,1744684241406,-244.8,0.00017896,2]
[358067295,1744684241418,-500.0,0.00017896,2]
[358067296,1744684241429,-500.0,0.00017896,2]
[358067297,1744684241441,-500.0,0.00017896,2]
[358067298,1744684241453,-500.0,0.00017896,2]
[358067299,1744684241465,-500.0,0.00017896,2]
[358067300,1744684241476,-500.0,0.00017896,2]
[358067301,1744684241488,-500.0,0.00017896,2]
[358067302,1744684241499,-500.0,0.00017896,2]
[358067303,1744684241511,-500.0,0.00017896,2]
[358067304,1744684241523,-734.09,0.00017896,2]
[358067305,1744684241534,-500.0,0.00017896,2]
[358067306,1744684241546,-500.0,0.00017896,2]
[358067307,1744684241557,-500.0,0.00017896,2]
[358067308,1744684241569,-500.0,0.00017896,2]
[358067309,1744684241579,-500.0,0.00017896,2]
[358067310,1744684241591,-500.0,0.00017896,2]
[358067311,1744684241603,-519.9414459,0.00017896,2]
[358067312,1744684241614,-500.0,0.00017896,2]
[358067313,1744684241626,-500.0,0.00017896,2]
[358067314,1744684241638,-500.0,0.00017896,2]
[358067315,1744684241650,-500.0,0.00017896,2]
[358067316,1744684241661,-500.0,0.00017896,2]
[358067317,1744684241672,-500.0,0.00017896,2]
[358067318,1744684241684,-500.0,0.00017896,2]
[358067319,1744684241695,-500.0,0.00017896,2]
[358067320,1744684241706,-500.0,0.00017896,2]
[358067321,1744684241718,-500.0,0.00017896,2]
[358067322,1744684241729,-500.0,0.00017896,2]
[358067323,1744684241740,-534.11019436,0.00017896,2]
[358067324,1744684241751,-500.0,0.00017896,2]
[358067325,1744684241762,-500.0,0.00017896,2]
[358067326,1744684241773,-500.0,0.00017896,2]
[358067327,1744684241783,-500.0,0.00017896,2]
[358067328,1744684241794,-500.0,0.00017896,2]
[358067329,1744684241805,-586.52,0.00017896,2]
[358067330,1744684241817,-500.0,0.00017896,2]
[358067331,1744684241827,-500.0,0.00017896,2]
[358067332,1744684241839,-500.0,0.00017896,2]
[358067333,1744684241849,-500.0,0.00017896,2]
[358067334,1744684241861,-500.0,0.00017896,2]
[358067335,1744684241872,-566.52834172,0.00017896,2]
[358067336,1744684241884,-545.08813159,0.00017896,2]
[358067337,1744684241895,-503.36742057,0.00017896,2]
[358067338,1744684241906,-500.0,0.00017896,2]
[358067339,1744684241917,-500.0,0.00017896,2]
[358067340,1744684241928,-683.98,0.00017896,2]
[358067341,1744684241940,-500.0,0.00017896,2]
[358067342,1744684241952,-500.0,0.00017896,2]
[358067343,1744684241963,-500.0,0.00017896,2]
[358067344,1744684241973,-500.0,0.00017896,2]
[358067345,1744684241984,-500.0,0.00017896,2]
[358067346,1744684241995,-1254.31,0.00017896,2]
[358067347,1744684242006,-500.0,0.00017896,2]
[358067348,1744684242015,-500.0,0.00017896,2]
[358067349,1744684242025,-500.0,0.00017896,2]
[358067350,1744684242034,-597.47597344,0.00017896,2]
[358067351,1744684242044,-503.3975478,0.00017896,2]
[358067352,1744684242054,-500.0,0.00017896,2]
[358067353,1744684242339,-547.28369523,0.00017896,2]
[358067354,1744684242355,-254.26382086,0.00017896,2]
[358067355,1744684242366,-500.0,0.00017896,2]
[358067356,1744684242378,-173.60090978,0.00017896,2]
[358067357,1744684242388,-1498.99,0.00017896,2]
[358067358,1744684242398,-500.0,0.00017897,2]
[358067359,1744684242408,-525.78477097,0.00017897,2]
[358067360,1744684242419,-519.44235077,0.00017897,2]
[358067361,1744684242428,-521.39117728,0.00017897,2]
[358067362,1744684242438,-500.0,0.00017897,2]
[358067363,1744684242448,-500.0,0.00017897,2]
[358067364,1744684242459,-515.62055378,0.00017897,2]
[358067365,1744684242468,-437.12284183,0.00017897,2]
[358067366,1744684242477,-516.59091131,0.00017897,2]
[358067367,1744684242486,-571.01435916,0.00017897,2]
[358067368,1744684242495,-502.96657579,0.00017897,2]
[358067369,1744684242504,-500.0,0.00017897,2]
[358067370,1744684242513,-500.0,0.00017897,2]
[358067371,1744684242522,-540.69715187,0.00017897,2]
[358067372,1744684242531,-500.0,0.00017897,2]
[358067373,1744684242540,-500.0,0.00017897,2]
[358067374,1744684242549,-500.0,0.00017897,2]
[358067375,1744684242558,-500.0,0.00017897,2]
[358067376,1744684242568,-504.48382921,0.00017897,2]
[358067377,1744684242577,-500.0,0.00017897,2]
[358067378,1744684242586,-271.04821779,0.00017897,2]
[358067379,1744684242596,-500.0,0.00017897,2]
[358067380,1744684242605,-505.24519186,0.00017897,2]
[358067381,1744684242615,-463.76204142,0.00017897,2]
[358067382,1744684242624,-500.0,0.00017897,2]
[358067383,1744684242634,-512.13505422,0.00017897,2]
[358067384,1744684242643,-500.0,0.00017897,2]
[358067385,1744684242652,-513.59993056,0.00017897,2]
[358067386,1744684242661,-508.60245774,0.00017897,2]
[358067387,1744684242671,-500.0,0.00017897,2]
[358067388,1744684242681,-534.50730107,0.00017897,2]
[358067389,1744684242690,-239.62106225,0.00017897,2]